[Event "Silves Open 2025"]
[Site "Fissul"]
[Date "2025.03.03"]
[Round "1.16"]
[White "Rasti, Arvin"]
[Black "Crow, Steve"]
[Result "1-0"]
[Annotator "TA"]
[ECO "A84"]
[WhiteElo "2232"]
[BlackElo "1742"]
[PlyCount "87"]
[EventDate "2025.03.03"]
[EventType "swiss"]
[EventCountry "POR"]
[SourceTitle "playchess.com"]
[Source "ChessBase"]
[SourceQuality "1"]
[TimeControl "5400+30"]

{[%evp 20,87,62,52,104,78,92,95,97,43,64,35,48,35,134,109,204,213,196,179,205,218,292,212,250,266,405,390,402,386,394,395,456,472,491,491,491,499,499,491,494,494,567,569,588,579,554,461,544,522,518,490,486,485,491,481,504,500,519,519,542,509,565,542,585,573,706,679,1750,1724]} 1. Nf3 {[%emt 0:00:07]} f5 {[%emt 0:00:38]} 2. d4 {[%emt 0:01:18]} Nf6 {[%emt 0:00:48]} 3. c4 {[%emt 0:00:14]} e6 {[%emt 0:00:28]} 4. g3 {[%emt 0:00:16]} b6 {[%emt 0:01:02]} 5. Bg2 {[%emt 0:00:07]} Bb7 {[%emt 0:00:15]} 6. Nc3 {[%emt 0:00:29]} Be7 {[%emt 0:01:29]} 7. O-O {[%emt 0:00:16]} O-O {[%emt 0:00:41]} 8. d5 {[%emt 0:01:23]} exd5 {[%emt 1:29:09]} 9. Nd4 {[%emt 0:00:29]} Ne4 {[%emt 0:00:00]} 10. cxd5 {[%emt 0:01:55]} Nxc3 {[%emt 0:00:00]} 11. bxc3 {[%emt 0:00:11][%cal Od5d6]} c5 $146 {[%emt 0:00:00] A84: Dutch Defence: 2 c4 Miscellaneous.} (11... Bd6 $14) ({Predecessor:} 11... Na6 12. d6 Bxg2 13. dxe7 Qxe7 14. Kxg2 Qe4+ 15. f3 Qd5 16. Qb3 Qxb3 17. axb3 Nc5 18. b4 Nb7 19. Bf4 {1-0 Nagorski,A (1843)-Mukkattu,P (1676) George Trundle Reserves 2017 (2)}) 12. dxc6 {[%emt 0:07:53]} Nxc6 {[%emt 0:00:00]} 13. Nb5 {[%emt 0:00:29]} Kh8 {[%emt 0:02:30] White is better.} 14. Re1 ({White should play} 14. Bf4 $16) 14... Na5 15. Bf4 Bxg2 16. Kxg2 Rf6 {White stays focused until the end.} ({Black should play} 16... Rc8 $14) 17. e4 $16 {White is more active.} a6 {[%emt 0:00:00]} (17... fxe4 $16 {keeps fighting.} 18. Rxe4 Nc6) 18. Nc7 $18 {[%emt 0:15:13]} Rc8 {[%emt 0:00:00]} 19. Nd5 {[%emt 0:01:20]} (19. Nxa6 Rxc3 20. Be5 Rcc6) 19... Rf7 {[%emt 0:00:00]} 20. exf5 {[%emt 0:00:30]} Nc4 {[%emt 0:00:00]} 21. Qe2 {[%emt 0:00:30]} Bf6 {[%emt 0:00:00]} 22. Bc7 {[%emt 0:00:30]} Rxc7 {[%emt 0:00:00]} (22... Qf8 $142 23. Qxc4 Bd8) 23. Nxc7 {[%emt 0:00:30]} Nd6 {[%emt 0:00:00]} 24. Nd5 {[%emt 0:00:30]} (24. Nxa6 Bxc3 25. Rad1 Bxe1 $18) 24... Qa8 {[%emt 0:00:00]} 25. Qf3 {[%emt 0:00:30]} Bg5 {[%emt 0:00:00]} 26. Nxb6 {[%emt 0:00:30] White is clearly winning.} Qxf3+ {[%emt 0:00:00]} 27. Kxf3 {[%emt 0:00:30]} Rxf5+ {[%emt 0:00:00]} 28. Kg2 {[%emt 0:00:30]} Bd2 {[%emt 0:00:00] [#]} 29. Nc4 $1 {[%emt 0:00:30]} Bxe1 {[%emt 0:00:00]} (29... Nxc4 30. Re8+) 30. Rxe1 {[%emt 0:00:30]} ({Worse is} 30. Nxd6 Rxf2+ (30... Bxc3 $2 {loses.} 31. Rc1 $18) 31. Kh3 Re2 $11 (31... Bxc3 32. Rc1 $11)) 30... Rc5 {[%emt 0:00:00]} 31. Nxd6 {[%emt 0:00:30][%cal Re1e8][%mdl 4096] Endgame KRN-KR} h6 {[%emt 0:00:00]} 32. c4 {[%emt 0:00:30]} Rc6 {[%emt 0:00:00]} 33. Re8+ {[%emt 0:00:30]} Kh7 {[%emt 0:00:00]} 34. Nf7 {[%emt 0:00:30] Rh8+ is the strong threat.} d6 {[%emt 0:00:00]} 35. c5 {[%emt 0:00:30]} Rxc5 {[%emt 0:00:00]} 36. Nxd6 {[%emt 0:00:30][%cal Bf7d6,Bd6c4,Bc4e5,Be5f3,Bf3g5][%mdl 32]} Ra5 {[%emt 0:00:00]} 37. Re2 {[%emt 0:00:30]} Rd5 {[%emt 0:00:00]} 38. Nc4 {[%emt 0:00:30]} Rc5 {[%emt 0:00:18]} 39. Ne5 {[%emt 0:00:30]} h5 {[%emt 0:00:30]} 40. h4 {[%emt 0:00:30]} Rc7 {[%emt 0:00:30]} 41. Re4 {[%emt 0:00:30]} Re7 {[%emt 0:00:30] [#]} 42. Nf3 $1 {[%emt 0:00:30]} Rc7 {[%emt 0:00:30]} (42... Rxe4 43. Ng5+) 43. Ng5+ {[%emt 0:00:30]} Kh6 {[%emt 0:00:30]} 44. Re6+ {[%emt 0:00:30] Weighted Error Value: White=0.16 (very precise) /Black=0.34  Mistake:       	White=1     	Black=3      Inaccurate:     	White=1     	Black=2      OK:         	White=16    	Black=7      Best:        	White=1     	Black=1} 1-0

[Event "Silves Open 2025"]
[Site "Fissul"]
[Date "2025.03.03"]
[Round "1.17"]
[White "Tolentino, Andre Angelo"]
[Black "Monteiro, Paulo Alexandre G"]
[Result "0-1"]
[Annotator "TA"]
[ECO "B77"]
[WhiteElo "1843"]
[BlackElo "2221"]
[PlyCount "66"]
[EventDate "2025.03.03"]
[EventType "swiss"]
[EventCountry "POR"]
[SourceTitle "playchess.com"]
[Source "ChessBase"]
[SourceQuality "1"]
[TimeControl "5400+30"]

{[%evp 21,66,24,13,-14,-4,-12,-23,-31,-17,-25,-35,-36,12,-29,0,0,0,0,0,-14,31,2,38,0,0,-16,-21,0,156,-97,-69,-195,-233,-226,-202,-201,-192,-212,-212,-212,-197,-317,-329,-318,-318,-310,-336]} 1. e4 {[%emt 1:31:00]} c5 {[%emt 1:31:00]} 2. Nf3 {[%emt 0:00:30]} d6 {[%emt 0:00:30]} 3. d4 {[%emt 0:00:30]} cxd4 {[%emt 0:00:30]} 4. Nxd4 {[%emt 0:00:30]} Nf6 {[%emt 0:00:30]} 5. Nc3 {[%emt 0:00:30]} g6 {[%emt 0:00:30]} 6. Bc4 {[%emt 0:00:30]} Bg7 {[%emt 0:00:30]} 7. O-O {[%emt 0:00:30]} O-O {[%emt 0:00:30]} 8. f3 {[%emt 0:00:30]} Nc6 {[%emt 0:00:30]} 9. Be3 {[%emt 0:00:30]} Bd7 {[%emt 0:00:30]} 10. Qd2 {[%emt 0:00:30]} Ne5 {[%emt 0:00:30]} 11. Bb3 {[%emt 0:00:30]} Rc8 {[%emt 0:00:30]} 12. Nd5 {[%emt 0:00:30] B77: Sicilian Dragon: Yugoslav Attack, 9 Bc4 sidelines.} Nxd5 {[%emt 0:00:30]} 13. Bxd5 {[%emt 0:00:30][%cal Oa2a4]} b5 {[%emt 0:00:30]} 14. c3 {[%emt 0:00:30] Black has an edge.} a5 {[%emt 0:00:30] With the idea ...e6.} 15. a3 $146 {[%emt 0:00:30]} (15. Bh6 e6 16. Bxg7 Kxg7 17. Bb3 a4 18. Bc2 Nc4 19. Qc1 b4 20. Bd3 a3 21. Bxc4 Rxc4 22. bxa3 bxc3 {0-1 Ortiz Lopera,M (1396)-Cordoba Roa,A (1892) Medellin Luces op 2020 (2)}) 15... Nc4 {[%emt 0:00:30]} 16. Bxc4 {[%emt 0:00:30]} Rxc4 {[%emt 0:00:30]} (16... bxc4 $15 17. Ne2 Rb8) 17. Bh6 {[%emt 0:00:30]} Qb6 {[%emt 0:00:30]} 18. Bxg7 {[%emt 0:00:30]} Kxg7 {[%emt 0:00:30]} 19. Qf2 {[%emt 0:00:30]} Rb8 {[%emt 0:00:30]} 20. Nc2 {[%emt 0:00:30]} Qb7 {[%emt 0:00:30]} 21. Qe3 {[%emt 0:00:30]} Rc5 {[%emt 0:00:30]} 22. f4 {[%emt 0:00:30]} Bc6 {[%emt 0:00:30]} 23. Rae1 {[%emt 0:00:30]} Rc4 {[%emt 0:00:30][%cal Rc4e4]} 24. Nd4 {[%emt 0:00:30] Strongly threatening f5.} b4 $2 {[%emt 0:00:30] [#]} ({Black should try} 24... e5 $11 25. fxe5 dxe5 26. Nxc6 Rxc6 (26... Qxc6 27. Rd1 $17)) 25. Nxc6 $2 {[%emt 0:00:30]} (25. f5 $16 {stays on course.}) 25... Qxc6 $17 {[%emt 0:00:30]} 26. f5 {[%emt 0:00:30] This move loses the game for White.} (26. cxb4 $1 $15 axb4 27. Re2) 26... bxc3 {[%emt 0:00:30]} 27. bxc3 {[%emt 0:00:30]} Qc5 {[%emt 0:00:30]} 28. Qxc5 {[%emt 0:00:30]} Rxc5 {[%emt 0:00:30]} 29. fxg6 {[%emt 0:00:30]} hxg6 $19 {[%emt 0:00:30][%cal Ob8b3] KRR-KRR} ({Weaker is} 29... Rxc3 30. Rxf7+ (30. gxf7 Rf8 $11) 30... Kxg6 31. Rxe7 $14) 30. Re3 {[%emt 0:00:30]} Rb3 {[%emt 0:00:30]} 31. Ra1 {[%emt 0:00:30]} (31. Ref3 $142 f6 (31... Rcxc3 32. Rxf7+ Kh6 33. h3 $11) 32. c4 Rxf3 33. Rxf3) 31... Rcxc3 {[%emt 0:00:30] Black has a decisive advantage.} 32. Rxc3 {[%emt 0:00:30]} Rxc3 {[%emt 0:00:30]} 33. Kf2 {[%emt 0:00:30]} Kf6 {[%emt 0:00:30] Weighted Error Value: White=0.44/Black=0.25 (precise)   Mistake:       	White=3     	Black=2      Inaccurate:     	White=3     	Black=3      OK:         	White=5     	Black=7      Best:        	White=1     	---} 0-1

[Event "Silves Open 2025"]
[Site "Fissul"]
[Date "2025.03.03"]
[Round "1.19"]
[White "Jeremias, Damaim"]
[Black "Santos, Antonio P"]
[Result "0-1"]
[Annotator "TA"]
[ECO "A88"]
[WhiteElo "1690"]
[BlackElo "2209"]
[PlyCount "62"]
[EventDate "2025.03.03"]
[EventType "swiss"]
[EventCountry "POR"]
[SourceTitle "playchess.com"]
[Source "ChessBase"]
[SourceQuality "1"]
[TimeControl "5400+30"]

{[%evp 16,62,46,15,17,17,20,-8,-26,-88,-88,-87,-31,-33,0,0,66,56,97,95,104,102,175,167,172,123,106,121,168,158,160,140,283,287,287,277,285,281,275,280,282,284,320,318,306,273,647,648,685]} 1. Nf3 {[%emt 1:31:00]} d6 {[%emt 1:31:00]} 2. d4 {[%emt 0:00:30]} f5 {[%emt 0:00:30]} 3. g3 {[%emt 0:00:30]} Nf6 {[%emt 0:00:30]} 4. Bg2 {[%emt 0:00:30]} g6 {[%emt 0:00:30]} 5. c4 {[%emt 0:00:30]} Bg7 {[%emt 0:00:30]} 6. Nc3 {[%emt 0:00:30]} O-O {[%emt 0:00:30]} 7. O-O {[%emt 0:00:30]} c6 {[%emt 0:00:30]} 8. Re1 {[%emt 0:00:30]} Ne4 {[%emt 0:00:30]} 9. Qd3 {[%emt 0:00:30]} Nxc3 {[%emt 0:00:30] A88: Dutch Defence: Leningrad System: 5 Nf3 0-0 6 0-0 d6 7 Nc3 c6.} 10. bxc3 {[%emt 0:00:30]} e5 {[%emt 0:00:30] [#] Threatens to win with ...e4.} 11. dxe5 {[%emt 0:00:30]} dxe5 {[%emt 0:00:30] The position is equal.} 12. Qc2 {[%emt 0:00:30]} (12. Qxd8 $11 Rxd8 13. a4) 12... e4 {[%emt 0:00:30]} 13. Rd1 $146 {[%emt 0:00:30]} (13. Nd4 a6 14. a4 Qf6 15. c5 Nd7 16. Ba3 Ne5 17. Qa2+ Kh8 18. f3 exf3 19. exf3 {0-1 Guasch Murtra,J (1891)-Vinals Rioja,J (2051) La Pobla de Lillet op-A 29th 2019 (3)}) 13... Qa5 {[%emt 0:00:30]} (13... Nd7 $17 14. Nd4 Qe7) 14. Nd4 $15 {[%emt 0:00:30]} c5 {[%emt 0:00:30]} 15. Nb5 {[%emt 0:00:30]} Be6 {[%emt 0:00:30]} ({Better is} 15... Nc6 $11) 16. Bf4 $14 {[%emt 0:00:30]} Na6 {[%emt 0:00:30] Wards off Nc7} 17. Qb3 {[%emt 0:00:30]} Rfd8 {[%emt 0:00:30]} 18. a4 {[%emt 0:00:30]} Rxd1+ {[%emt 0:00:30]} (18... Bf6 $16 19. f3 g5) 19. Rxd1 $18 {[%emt 0:00:30]} Rd8 {[%emt 0:00:30]} 20. Rxd8+ ({Don't do} 20. Nxa7 Rxd1+ 21. Qxd1 Bxc3 $16) (20. f3 $18) 20... Qxd8 $16 21. Nxa7 {[%emt 0:01:00]} Qd7 {[%emt 0:01:00]} (21... Qe7 $16 {is a better defense.}) 22. Nb5 {[%emt 0:00:30][%cal Ba7b5,Bb5d6,Bd6b7][%mdl 32]} h6 {[%emt 0:00:30]} 23. h4 {[%emt 0:00:30]} Qd8 {[%emt 0:00:30] Loses the game.} (23... Bf6 $16 24. Bxh6 Be5) 24. Nd6 $18 {[%emt 0:00:30]} g5 {[%emt 0:00:30]} 25. Nxb7 {[%emt 0:00:30]} Qf6 {[%emt 0:00:30]} 26. hxg5 {[%emt 0:00:30]} hxg5 {[%emt 0:00:30]} 27. Bd2 {[%emt 0:00:30]} Bc8 {[%emt 0:00:30]} 28. Qb5 {[%emt 0:00:30]} Qe7 {[%emt 0:00:30] Prevents Qe8+.} 29. Qxa6 {[%emt 0:00:30]} Bxb7 {[%emt 0:00:30]} 30. Qg6 {[%emt 0:00:30]} g4 $2 {[%emt 0:00:30] [#]} (30... Qf6 31. Qe8+ (31. Qxg5 Qxg5 32. Bxg5 Bxc3 $18) 31... Kh7) 31. Qxf5 {[%emt 0:00:30]} Qf6 {[%emt 0:00:30][%mdl 32768] Weighted Error Value: White=0.14 (very precise) /Black=0.52 Loss on time!?  Mistake:       	White=2     	Black=6      Inaccurate:     	White=1     	Black=2      OK:         	White=8     	Black=5      Best:        	White=2     	---} 0-1

[Event "Silves Open 2025"]
[Site "Fissul"]
[Date "2025.03.03"]
[Round "1.20"]
[White "Ryabukhin, Roman"]
[Black "Bravo Galvez, Ricardo"]
[Result "1-0"]
[Annotator "TA"]
[ECO "D00"]
[WhiteElo "2209"]
[BlackElo "2098"]
[PlyCount "69"]
[EventDate "2025.03.03"]
[EventType "swiss"]
[EventCountry "POR"]
[SourceTitle "playchess.com"]
[Source "ChessBase"]
[SourceQuality "1"]
[TimeControl "5400+30"]

{[%evp 9,69,9,15,5,33,31,41,5,12,10,9,13,0,-19,114,106,101,106,108,63,64,77,130,124,120,126,138,127,131,148,178,154,156,133,165,160,158,156,158,118,125,84,110,103,192,104,185,185,193,204,258,225,429,430,738,347,347,318,426,406,418,422]} 1. d4 {[%emt 1:31:00]} d5 {[%emt 1:31:00]} 2. Bf4 {[%emt 0:00:30]} Nf6 {[%emt 0:00:30]} 3. Nc3 {[%emt 0:00:30]} c6 {[%emt 0:00:30]} 4. e3 {[%emt 0:00:30]} Bf5 {[%emt 0:00:30]} 5. f3 {[%emt 0:00:30]} h6 {[%emt 0:00:30]} 6. g4 {[%emt 0:00:30] D00: 1 d4 d5: Unusual lines.} Bg6 {[%emt 0:00:30]} 7. h4 {[%emt 0:00:30]} Qb6 {[%emt 0:00:30]} 8. Na4 {[%emt 0:00:30] White is slightly better.} Qa5+ {[%emt 0:00:30]} 9. c3 {[%emt 0:00:30]} Nbd7 {[%emt 0:00:30] Inhibits Nc5.} 10. b4 {[%emt 0:00:30]} Qd8 {[%emt 0:00:30]} 11. Nb2 $146 {[%emt 0:00:30]} (11. Bd3 a5 12. Bxg6 fxg6 13. a3 b5 14. Nb2 e6 15. Qd3 Kf7 16. Rd1 axb4 17. axb4 {0-1 Fiorito,F (2340)-Llorente Zaro,A (2436) Titled Tuesday intern op 29th Aug Late blitz 2023 (11)}) 11... b5 {[%emt 0:00:30]} (11... a5 $11 {keeps the balance.}) 12. a4 $36 {[%emt 0:00:30][%mdl 2048] Black is under strong pressure.} a6 {[%emt 0:00:30]} 13. a5 {[%emt 0:00:30] Dodges Nb6} e6 {[%emt 0:00:30]} 14. Qd2 {[%emt 0:00:30]} Qe7 {[%emt 0:00:30]} 15. Qh2 {[%emt 0:00:30]} Ng8 {[%emt 0:00:30]} (15... O-O-O $142) 16. h5 {[%emt 0:00:30]} Bh7 {[%emt 0:00:30]} 17. Bd3 {[%emt 0:00:30]} f6 {[%emt 0:00:30]} 18. Bxh7 {[%emt 0:00:30]} Rxh7 {[%emt 0:00:30]} 19. Nd3 {[%emt 0:00:30]} Qf7 {[%emt 0:00:30]} 20. O-O-O {[%emt 0:00:30]} Ne7 {[%emt 0:00:30]} 21. e4 {[%emt 0:00:30] White is more active.} g6 {[%emt 0:00:30]} 22. hxg6 {[%emt 0:00:30]} Nxg6 {[%emt 0:00:30]} 23. exd5 {[%emt 0:00:30]} cxd5 {[%emt 0:00:30]} 24. Bg3 {[%emt 0:00:30]} O-O-O {[%emt 0:00:30]} 25. Nh3 {[%emt 0:00:30]} Be7 {[%emt 0:00:30]} 26. Nhf4 {[%emt 0:00:30]} Ndf8 {[%emt 0:00:30]} (26... Nxf4 $16 27. Nxf4 (27. Bxf4 e5 $14) 27... f5) 27. Rhe1 {[%emt 0:00:30]} ({White should play} 27. Nxg6 $18 Qxg6 28. Kb2) 27... f5 {[%emt 0:00:30][%csl Oe6,Oh6] Black has weak pawns} (27... Nxf4 $16 28. Nxf4 Re8) 28. Nh5 {[%emt 0:00:30]} Nd7 {[%emt 0:00:30]} 29. Re2 {[%emt 0:00:30]} Rhh8 {[%emt 0:00:30]} 30. Rde1 {[%emt 0:00:30]} Ngf8 {[%emt 0:00:30]} (30... Rde8 {was worth a try.} 31. Kb2 (31. Rxe6 Bg5+ 32. Kb2 Rxe6 $17) 31... Bg5) 31. Kc2 $18 {[%emt 0:00:30] Strongly threatening gxf5.} Re8 {[%emt 0:00:30]} (31... fxg4 $142 32. fxg4 Re8) 32. Nhf4 {[%emt 0:00:30]} (32. gxf5 $142 Qxf5 33. Ng7) 32... Bd8 {[%emt 0:00:30] [#]} 33. Nxd5 $1 {[%emt 0:00:30][%mdl 512]} Ng6 {[%emt 0:00:30]} (33... Kb7 34. N5f4) 34. Nc7 {[%emt 0:00:30]} Bxc7 {[%emt 0:00:30]} 35. Bxc7 {[%emt 0:00:30] Weighted Error Value: White=0.31/Black=0.56  Mistake:       	White=2     	Black=6      Inaccurate:     	White=3     	Black=3      OK:         	White=13    	Black=10} 1-0

[Event "Silves Open 2025"]
[Site "Fissul"]
[Date "2025.03.03"]
[Round "1.21"]
[White "Breitkopf, Ilian"]
[Black "Milat, Marcel"]
[Result "0-1"]
[Annotator "TA"]
[ECO "B34"]
[WhiteElo "1671"]
[BlackElo "2190"]
[PlyCount "56"]
[EventDate "2025.03.03"]
[EventType "swiss"]
[EventCountry "POR"]
[SourceTitle "playchess.com"]
[Source "ChessBase"]
[SourceQuality "1"]
[TimeControl "5400+30"]

{[%evp 11,56,4,0,-9,-10,-72,-7,-18,1,-60,-66,-162,-164,-140,-110,-108,-81,-131,-147,-215,-210,-215,-210,-215,-215,-222,-214,-315,-300,-485,-472,-450,-364,-425,-319,-318,-309,-359,-304,-437,-430,-414,-416,-796,-789,-781,-774]} 1. e4 {[%emt 0:00:04]} c5 {[%emt 0:02:20]} 2. Nf3 {[%emt 0:01:14]} Nc6 {[%emt 0:00:08]} 3. d4 {[%emt 0:00:58]} cxd4 {[%emt 0:00:14]} 4. Nxd4 {[%emt 0:00:37]} g6 {[%emt 0:02:31]} 5. Nc3 {[%emt 0:02:49]} Bg7 {[%emt 0:00:33]} 6. Be3 {[%emt 0:03:13]} Nf6 {[%emt 0:00:33]} 7. Bb5 {[%emt 0:04:10] B34: Sicilian: Accelerated Dragon with 5 Nc3: sidelines.} O-O {[%emt 0:10:21][%cal Of6g4]} 8. f4 {[%emt 0:09:41]} (8. O-O $11 {remains equal.}) 8... a6 {[%emt 0:21:26]} (8... Ng4 $17 9. Bg1 e5 10. fxe5 Ngxe5 (10... Ncxe5 11. Qe2 $15)) 9. Nxc6 $146 {[%emt 0:07:25] The position is equal.} (9. Bxc6 bxc6 10. O-O Rb8 11. Rb1 a5 12. Qf3 Ba6 13. Rf2 Qc7 14. f5 c5 15. Nb3 c4 {0-1 Mustakova,K-Nurdin,T (2025) Gran Canaria Online Blitz 3rd 2022 (1)}) 9... bxc6 {[%emt 0:00:32]} 10. Ba4 {[%emt 0:09:02]} (10. Be2 $1 $11) 10... Qa5 $15 {[%emt 0:10:13]} 11. Qd4 {[%emt 0:10:43] [#]} (11. Qf3 $15) 11... Nd5 $1 $36 {[%emt 0:15:52][%mdl 2560] White is under strong pressure.} 12. e5 {[%emt 0:00:41][%cal Ob2b4]} Nxe3 {[%emt 0:15:25]} 13. Qxe3 {[%emt 0:46:23]} d6 {[%emt 0:02:36][%cal Rd6e5]} 14. Bxc6 {[%emt 0:00:00]} ({Better is} 14. O-O-O) 14... Rb8 $17 {[%emt 0:00:05][%cal Rd6e5] Black sacrificed a pawn} 15. Rb1 {[%emt 0:00:00]} (15. O-O $17 {was necessary.}) 15... dxe5 {[%emt 0:00:13]} 16. fxe5 {[%emt 0:00:00]} Be6 {[%emt 0:02:03][%cal Of8c8] [#]} 17. O-O {[%emt 0:00:00]} Bxe5 {[%emt 0:00:06]} 18. Rfe1 {[%emt 0:00:00]} Bf6 {[%emt 0:01:00]} 19. Ne4 {[%emt 0:00:00]} (19. Be4 $142) 19... Bxb2 $19 {[%emt 0:00:22][%cal Of8c8] and ...Rfc8! would now be decisive} 20. Ng5 $2 {[%emt 0:00:00]} (20. Rbd1) 20... Bxa2 {[%emt 0:00:47] This pair of bishops is nice.} (20... Qxa2 $2 21. Nxe6 Qxe6 22. Qxe6 fxe6 23. Rbd1 $19) 21. Rbd1 {[%emt 0:00:00]} Rbc8 {[%emt 0:04:17]} ({Much less strong is} 21... Qb6 22. Qxb6 Rxb6 23. Bd5 Bxd5 24. Rxd5 $19) 22. Be4 {[%emt 0:00:00]} Bf6 {[%emt 0:00:31]} 23. Nf3 {[%emt 0:00:00]} Bc4 {[%emt 0:01:00]} 24. Rd7 {[%emt 0:00:17]} Qc5 {[%emt 0:01:06]} 25. Nd4 {[%emt 0:00:49]} (25. Ra7 $142) 25... Rfd8 {[%emt 0:00:48]} 26. Rxd8+ {[%emt 0:00:40]} Rxd8 {[%emt 0:00:01]} 27. Nf5 {[%emt 0:01:03]} (27. Nf3 $142 Qc7 28. g3) 27... Qa5 {[%emt 0:01:05]} 28. Nh6+ {[%emt 0:00:32]} Kg7 {[%emt 0:00:02] Weighted Error Value: White=0.65/Black=0.21 (precise)   Mistake:       	White=9     	Black=1      OK:         	White=6     	Black=10     Best:        	White=1     	Black=1} 0-1